fUST/lending_fUST_20250808
["ID","MTS","AMOUNT","RATE_DAILY","PERIOD"]
[377865372,1754585452308,-961.59,0.00023287,2]
[377865373,1754585452318,-460.0,0.00023287,2]
[377865374,1754585452327,-164.624851,0.00023287,7]
[377865375,1754585452337,-164.624851,0.00023287,7]
[377865376,1754585452347,-460.0,0.00023287,2]
[377865377,1754585452356,-1025.68,0.00023287,2]
[377865378,1754585452366,-711.58,0.00023287,2]
[377865379,1754585452378,-151.0,0.00023287,7]
[377865380,1754585452387,-151.0,0.00023287,7]
[377865381,1754585452397,-151.0,0.00023287,7]
[377865382,1754585452406,-151.0,0.00023287,7]
[377865383,1754585452415,-569.03,0.00023287,2]
[377865384,1754585452424,-271.750061,0.00023287,7]
[377865385,1754585452433,-271.750061,0.00023287,7]
[377865386,1754585452443,-166.12238018,0.00023287,2]
[377865387,1754585452452,-677.77,0.00023287,2]
[377865388,1754585452462,-224.46,0.00023287,2]
[377865389,1754585452472,-569.98,0.00023287,2]
[377865390,1754585452481,-466.12,0.00023287,2]
[377865391,1754585452490,-246.8,0.00023287,2]
[377865392,1754585452499,-460.0,0.00023287,2]
[377865393,1754585452508,-460.0,0.00023287,2]
[377865394,1754585452517,-460.0,0.00023287,2]
[377865395,1754585452527,-822.97,0.00023287,2]
[377865396,1754585452536,-628.38,0.00023287,2]
[377865397,1754585452546,-1150.72,0.00023287,2]
[377865398,1754585452555,-462.74,0.00023287,2]
[377865399,1754585452564,-460.0,0.00023287,2]
[377865400,1754585452574,-857.1,0.00023287,2]
[377865401,1754585452583,-888.93,0.00023287,2]
[377865402,1754585452592,-4583.72,0.00023287,2]
[377865403,1754585452601,-585.2,0.00023287,2]
[377865404,1754585452610,-460.0,0.00023287,2]
[377865405,1754585452620,-807.02,0.00023287,2]
[377865406,1754585452630,-1929.28,0.00023287,2]
[377865407,1754585452639,-460.0,0.00023287,2]
[377865408,1754585452648,-460.0,0.00023287,2]
[377865409,1754585452659,-460.0,0.00023287,2]
[377865410,1754585452668,-460.0,0.00023287,2]
[377865411,1754585452677,-1106.41,0.00023287,2]
[377865412,1754585452686,-151.0,0.00023287,7]
[377865413,1754585452695,-460.0,0.00023287,2]
[377865414,1754585452704,-674.64,0.00023287,2]
[377865415,1754585452714,-976.62,0.00023287,2]
[377865416,1754585452723,-460.0,0.00023287,2]
[377865417,1754585452733,-1790.64,0.00023287,2]
[377865418,1754585452742,-526.76337393,0.00023287,2]
[377865419,1754585452751,-1216.9,0.00023287,2]
[377865420,1754585452761,-1021.61,0.00023287,2]
[377865421,1754585452773,-812.24,0.00023287,2]
[377865422,1754585452783,-1041.91,0.00023287,2]
[377865423,1754585452793,-460.0,0.00023287,2]
[377865424,1754585452802,-1655.29,0.00023287,2]
[377865425,1754585452813,-719.38,0.00023287,2]
[377865426,1754585452823,-610.97,0.00023287,2]
[377865427,1754585452833,-1794.57,0.00023287,2]
[377865428,1754585452842,-840.44,0.00023287,2]
[377865429,1754585452853,-4384.59,0.00023287,2]
[377865430,1754585452863,-677.45,0.00023287,2]
[377865431,1754585452874,-2656.57,0.00023287,2]
[377865432,1754585452883,-710.03,0.00023287,2]
[377865433,1754585452892,-1698.03,0.00023287,2]
[377865434,1754585452902,-460.0,0.00023287,2]
[377865435,1754585452911,-2749.67,0.00023287,2]
[377865436,1754585452920,-460.0,0.00023287,2]
[377865437,1754585452930,-441.75105376,0.00023287,2]
[377865438,1754585452939,-460.0,0.00023287,2]
[377865439,1754585452949,-460.0,0.00023287,2]
[377865440,1754585452959,-534.6,0.00023287,2]
[377865441,1754585452968,-2887.33,0.00023287,2]
[377865442,1754585452977,-1793.93,0.00023287,2]
[377865443,1754585452987,-624.01,0.00023287,2]
[377865444,1754585452996,-468.01,0.00023287,2]
[377865445,1754585453006,-601.76,0.00023287,2]
[377865446,1754585453015,-460.0,0.00023287,2]
[377865447,1754585453026,-722.07,0.00023287,2]
[377865448,1754585453036,-777.7,0.00023287,2]
[377865449,1754585453045,-546.01,0.00023287,2]
[377865450,1754585453054,-1465.66,0.00023287,2]
[377865451,1754585453063,-195.96,0.00023287,2]
[377865452,1754585453072,-500.0,0.000233,2]
[377865453,1754585453081,-151.0,0.00023317,2]
[377865454,1754585453090,-151.0,0.00023317,2]
[377865455,1754585453099,-151.0,0.00023317,2]
[377865456,1754585453108,-151.0,0.00023317,2]
[377865457,1754585453117,-151.0,0.00023317,2]
[377865458,1754585453126,-151.0,0.00023317,2]
[377865459,1754585453135,-151.0,0.00023317,2]
[377865460,1754585453144,-151.0,0.00023317,2]
[377865461,1754585453153,-151.0,0.00023317,2]
[377865462,1754585453162,-173.69459988,0.00023317,2]
[377865463,1754585453171,-276.58935767,0.00023317,2]
[377865464,1754585453180,-151.85138139,0.00023317,2]
[377865465,1754585453189,-245.95502038,0.00023317,2]
[377865466,1754585453198,-151.0,0.00023317,2]
[377865467,1754585453207,-151.0,0.00023317,2]
[377865468,1754585453217,-151.0,0.00023317,2]
[377865469,1754585453227,-151.0,0.00023317,2]
[377865470,1754585453236,-151.0,0.00023317,2]
[377865471,1754585453246,-156.67850184,0.00023317,2]
[377865472,1754585453255,-767.35100547,0.00023321,2]
[377865473,1754585453264,-2490.73236547,0.00023321,2]
[377865474,1754585453280,-575.6022524,0.00023321,2]
[377865475,1754585453290,-151.0,0.00023409,7]
[377865476,1754585453299,-151.0,0.00023409,7]
[377865477,1754585453309,-151.0,0.00023409,7]
[377865478,1754585453319,-192.573371,0.00023409,7]
[377865479,1754585453328,-192.573371,0.00023409,7]
[377865480,1754585453338,-6830.97425259,0.00023409,2]
[377865481,1754585453360,-460.0,0.00021917,2]
[377865482,1754585453371,-2746.55,0.00022739,2]
[377865483,1754585453380,-3859.62206681,0.00023409,2]
[377865484,1754585453391,-151.0,0.00023413,7]
[377865485,1754585453401,-172.685185,0.00023413,7]
[377865486,1754585453410,-172.685185,0.00023413,7]
[377865487,1754585453420,-260.0,0.00023421,2]
[377865488,1754585453429,-1000.0,0.00023498,2]
[377865489,1754585453438,-1000.0,0.00023498,2]
[377865490,1754585453447,-1680.0,0.00023499,2]
[377865491,1754585453457,-524.47619267,0.00023531,2]
[377865492,1754585453466,-151.0,0.00023533,7]
[377865493,1754585453475,-151.0,0.00023533,7]
[377865494,1754585453486,-151.0,0.00023533,7]
[377865495,1754585453494,-1492.974833,0.00023533,7]
[377865496,1754585453503,-151.0,0.00023533,7]
[377865497,1754585453513,-151.0,0.00023533,7]
[377865498,1754585453522,-151.0,0.00023533,7]
[377865499,1754585453531,-151.0,0.00023533,7]
[377865500,1754585453540,-151.0,0.00023533,7]
[377865501,1754585453549,-151.0,0.00023533,7]
[377865502,1754585453559,-231.312791,0.00023533,7]
[377865503,1754585453569,-522.7258,0.00023533,7]
[377865504,1754585453578,-522.7258,0.00023533,7]
[377865505,1754585453587,-151.0,0.00023539,7]
[377865506,1754585453597,-151.0,0.00023539,7]
[377865507,1754585453606,-151.0,0.00023539,7]
[377865508,1754585453615,-151.0,0.00023539,7]
[377865509,1754585453628,-1405.251648,0.00023539,7]
[377865510,1754585453638,-1405.251648,0.00023539,7]
[377865511,1754585453647,-608.297843,0.00023539,7]
[377865512,1754585453658,-608.297843,0.00023539,7]
[377865513,1754585453668,-151.0,0.00023539,7]
[377865514,1754585453677,-151.0,0.00023539,7]
[377865515,1754585453687,-151.0,0.00023547,7]
[377865516,1754585453696,-151.0,0.00023561,7]
[377865517,1754585453707,-151.0,0.00023561,7]
[377865518,1754585453716,-151.0,0.00023561,7]
[377865519,1754585453726,-618.455089,0.00023561,7]
[377865520,1754585453736,-618.455089,0.00023561,7]
[377865521,1754585453745,-151.0,0.00023561,7]
[377865522,1754585453755,-151.0,0.00023561,7]
[377865523,1754585453765,-167.658214,0.00023561,7]
[377865524,1754585453778,-167.658214,0.00023561,7]
[377865525,1754585453787,-151.0,0.00023561,7]
[377865526,1754585453798,-151.0,0.00023561,7]
[377865527,1754585453807,-151.0,0.00023561,7]
[377865528,1754585453817,-460.0,0.00023561,2]
[377865529,1754585453826,-151.0,0.00023561,7]
[377865530,1754585453836,-151.0,0.00023561,7]
[377865531,1754585453846,-151.0,0.00023561,7]
[377865532,1754585453857,-593.43,0.00023561,2]
[377865533,1754585453867,-268.972367,0.00023561,7]
[377865534,1754585453879,-268.972367,0.00023561,7]
[377865535,1754585453890,-961.59,0.00023561,2]
[377865536,1754585453899,-151.0,0.00023561,7]
[377865537,1754585453909,-460.0,0.00023561,2]
[377865538,1754585453919,-151.0,0.00023561,7]
[377865539,1754585453928,-460.0,0.00023561,2]
[377865540,1754585453938,-1025.68,0.00023561,2]
[377865541,1754585453948,-711.58,0.00023561,2]
[377865542,1754585453957,-569.03,0.00023561,2]
[377865543,1754585453967,-677.77,0.00023561,2]
[377865544,1754585453977,-569.98,0.00023561,2]
[377865545,1754585453986,-466.12,0.00023561,2]
[377865546,1754585453996,-250.634318,0.00023561,7]
[377865547,1754585454005,-250.634318,0.00023561,7]
[377865548,1754585454014,-460.0,0.00023561,2]
[377865549,1754585454023,-460.0,0.00023561,2]
[377865550,1754585454033,-460.0,0.00023561,2]
[377865551,1754585454042,-822.97,0.00023561,2]
[377865552,1754585454051,-258.612292,0.00023561,7]
[377865553,1754585454061,-628.38,0.00023561,2]
[377865554,1754585454070,-1150.72,0.00023561,2]
[377865555,1754585454080,-462.74,0.00023561,2]
[377865556,1754585454089,-460.0,0.00023561,2]
[377865557,1754585454098,-857.1,0.00023561,2]
[377865558,1754585454108,-888.93,0.00023561,2]
[377865559,1754585454117,-4583.72,0.00023561,2]
[377865560,1754585454128,-585.2,0.00023561,2]
[377865561,1754585454138,-460.0,0.00023561,2]
[377865562,1754585454147,-807.02,0.00023561,2]
[377865563,1754585454156,-460.0,0.00023561,2]
[377865564,1754585454166,-1929.28,0.00023561,2]
[377865565,1754585454176,-460.0,0.00023561,2]
[377865566,1754585454185,-460.0,0.00023561,2]
[377865567,1754585454196,-460.0,0.00023561,2]
[377865568,1754585454206,-1106.41,0.00023561,2]
[377865569,1754585454215,-460.0,0.00023561,2]
[377865570,1754585454225,-674.64,0.00023561,2]
[377865571,1754585454234,-976.62,0.00023561,2]
[377865572,1754585454244,-609.464994,0.00023561,2]
[377865573,1754585454253,-1790.64,0.00023561,2]
[377865574,1754585454263,-1216.9,0.00023561,2]
[377865575,1754585454273,-1021.61,0.00023561,2]
[377865576,1754585454282,-812.24,0.00023561,2]
[377865577,1754585454292,-1041.91,0.00023561,2]
[377865578,1754585454302,-460.0,0.00023561,2]
[377865579,1754585454311,-1655.29,0.00023561,2]
[377865580,1754585454321,-719.38,0.00023561,2]
[377865581,1754585454331,-610.97,0.00023561,2]
[377865582,1754585454341,-1794.57,0.00023561,2]
[377865583,1754585454350,-840.44,0.00023561,2]
[377865584,1754585454360,-4384.59,0.00023561,2]
[377865585,1754585454372,-677.45,0.00023561,2]
[377865586,1754585454381,-2656.57,0.00023561,2]
[377865587,1754585454391,-710.03,0.00023561,2]
[377865588,1754585454401,-1698.03,0.00023561,2]
[377865589,1754585454411,-460.0,0.00023561,2]
[377865590,1754585454420,-2749.67,0.00023561,2]
[377865591,1754585454431,-460.0,0.00023561,2]
[377865592,1754585454441,-460.0,0.00023561,2]
[377865593,1754585454450,-460.0,0.00023561,2]
[377865594,1754585454460,-534.6,0.00023561,2]
[377865595,1754585454469,-2887.33,0.00023561,2]
[377865596,1754585454479,-1793.93,0.00023561,2]
[377865597,1754585454489,-3815.083943,0.00023561,7]
[377865598,1754585454499,-624.01,0.00023561,2]
[377865599,1754585454508,-468.01,0.00023561,2]
[377865600,1754585454518,-3815.083943,0.00023561,7]
[377865601,1754585454528,-601.76,0.00023561,2]
[377865602,1754585454537,-460.0,0.00023561,2]
[377865603,1754585454546,-722.07,0.00023561,2]
[377865604,1754585454555,-777.7,0.00023561,2]
[377865605,1754585454564,-1465.66,0.00023561,2]
[377865606,1754585454573,-546.01,0.00023561,2]
[377865607,1754585454582,-200.0,0.00023561,29]
[377865608,1754585454591,-201.35460193,0.00023591,2]
[377865609,1754585454600,-202.88886188,0.00023591,2]
[377865610,1754585454610,-212.20798353,0.00023591,2]
[377865611,1754585454620,-248.67033523,0.00023591,2]
[377865612,1754585454630,-151.0,0.00023591,2]
[377865613,1754585454639,-151.0,0.00023591,2]
[377865614,1754585454648,-2000.0,0.00023616,2]
[377865615,1754585454657,-1251.34498614,0.00023616,2]
[377865616,1754585454666,-1000.0,0.00023621,2]
[377865617,1754585454675,-1000.0,0.00023656,2]
[377865618,1754585454685,-500.0,0.00023664,5]
[377865619,1754585454695,-164.624851,0.00023715,7]
[377865620,1754585454704,-164.624851,0.00023715,7]
[377865621,1754585454713,-151.0,0.00023715,7]
[377865622,1754585454722,-151.0,0.00023715,7]
[377865623,1754585454732,-1680.0,0.00023716,2]
[377865624,1754585454742,-151.0,0.00023735,7]
[377865625,1754585454751,-151.0,0.00023735,7]
[377865626,1754585454761,-192.573371,0.00023735,7]
[377865627,1754585454772,-192.573371,0.00023735,7]
[377865628,1754585454783,-152.488091,0.00023768,7]
[377865629,1754585454792,-151.0,0.00023768,7]
[377865630,1754585454802,-397.303748,0.00023768,7]
[377865631,1754585454813,-151.0,0.00023768,7]
[377865632,1754585454823,-151.0,0.00023768,7]
[377865633,1754585454832,-151.0,0.00023768,7]
[377865634,1754585454842,-350.0,0.00023819,2]
[377865635,1754585454853,-1500.0,0.00023819,2]
[377865636,1754585454863,-374.849396,0.00023835,7]
[377865637,1754585454874,-374.849396,0.00023835,7]
[377865638,1754585454884,-151.0,0.00023835,7]
[377865639,1754585454894,-151.0,0.00023835,7]
[377865640,1754585455029,-151.0,0.00023835,7]
[377865641,1754585455038,-151.0,0.00023835,7]
[377865642,1754585455046,-602.415182,0.00023835,7]
[377865643,1754585455055,-151.0,0.00023835,7]
[377865644,1754585455064,-151.0,0.00023835,7]
[377865645,1754585455073,-602.415182,0.00023835,7]
[377865646,1754585455082,-151.731813,0.00023835,7]
[377865647,1754585455091,-151.0,0.00023835,7]
[377865648,1754585455100,-151.0,0.00023835,7]
[377865649,1754585455109,-151.0,0.00023835,7]
[377865650,1754585455118,-151.0,0.00023835,7]
[377865651,1754585455129,-151.0,0.00023835,7]
[377865652,1754585455138,-151.0,0.00023835,7]
[377865653,1754585455147,-151.0,0.00023835,7]
[377865654,1754585455155,-172.685185,0.00023835,7]
[377865655,1754585455164,-172.685185,0.00023835,7]
[377865656,1754585455173,-151.0,0.00023835,7]
[377865657,1754585455182,-151.0,0.00023835,7]
[377865658,1754585455192,-151.0,0.00023835,7]
[377865659,1754585455200,-151.0,0.00023835,7]
[377865660,1754585455209,-618.455089,0.00023835,7]
[377865661,1754585455218,-618.455089,0.00023835,7]
[377865662,1754585455227,-1492.974833,0.00023835,7]
[377865663,1754585455235,-151.0,0.00023835,7]
[377865664,1754585455244,-151.0,0.00023835,7]
[377865665,1754585455253,-152.215842,0.00023835,7]
[377865666,1754585455262,-151.0,0.00023835,7]
[377865667,1754585455272,-151.0,0.00023835,7]
[377865668,1754585455281,-151.0,0.00023835,7]
[377865669,1754585455290,-246.27061,0.00023835,7]
[377865670,1754585455299,-151.0,0.00023835,7]
[377865671,1754585455308,-151.0,0.00023835,7]
[377865672,1754585455317,-167.658214,0.00023835,7]
[377865673,1754585455326,-167.658214,0.00023835,7]
[377865674,1754585455336,-151.0,0.00023835,7]
[377865675,1754585455345,-151.0,0.00023835,7]
[377865676,1754585455355,-460.0,0.00023835,2]
[377865677,1754585455364,-151.0,0.00023835,7]
[377865678,1754585455375,-151.0,0.00023835,7]
[377865679,1754585455385,-151.0,0.00023835,7]
[377865680,1754585455394,-151.0,0.00023835,7]
[377865681,1754585455404,-593.43,0.00023835,2]
[377865682,1754585455413,-268.972367,0.00023835,7]
[377865683,1754585455423,-268.972367,0.00023835,7]
[377865684,1754585455432,-961.59,0.00023835,2]
[377865685,1754585455442,-1012.263324,0.00023835,7]
[377865686,1754585455452,-151.0,0.00023835,7]
[377865687,1754585455461,-460.0,0.00023835,2]
[377865688,1754585455471,-1012.263324,0.00023835,7]
[377865689,1754585455481,-151.0,0.00023835,7]
[377865690,1754585455491,-460.0,0.00023835,2]
[377865691,1754585455500,-1025.68,0.00023835,2]
[377865692,1754585455510,-711.58,0.00023835,2]
[377865693,1754585455519,-151.0,0.00023835,7]
[377865694,1754585455528,-151.0,0.00023835,7]
[377865695,1754585455537,-569.03,0.00023835,2]
[377865696,1754585455546,-271.750061,0.00023835,7]
[377865697,1754585455556,-271.750061,0.00023835,7]
[377865698,1754585455565,-677.77,0.00023835,2]
[377865699,1754585455574,-569.98,0.00023835,2]
[377865700,1754585455584,-466.12,0.00023835,2]
[377865701,1754585455594,-250.634318,0.00023835,7]
[377865702,1754585455603,-250.634318,0.00023835,7]
[377865703,1754585455612,-460.0,0.00023835,2]
[377865704,1754585455621,-151.0,0.00023835,7]
[377865705,1754585455632,-460.0,0.00023835,2]
[377865706,1754585455641,-239.192816,0.00023835,7]
[377865707,1754585455650,-151.0,0.00023835,7]
[377865708,1754585455660,-460.0,0.00023835,2]
[377865709,1754585455669,-239.192816,0.00023835,7]
[377865710,1754585455678,-822.97,0.00023835,2]
[377865711,1754585455687,-628.38,0.00023835,2]
[377865712,1754585455696,-1150.72,0.00023835,2]
[377865713,1754585455706,-462.74,0.00023835,2]
[377865714,1754585455715,-220.86140832,0.00023835,2]
[377865715,1754585455725,-1405.251648,0.00023835,7]
[377865716,1754585455735,-857.1,0.00023835,2]
[377865717,1754585455745,-1405.251648,0.00023835,7]
[377865718,1754585455754,-888.93,0.00023835,2]
[377865719,1754585455767,-4583.72,0.00023835,2]
[377865720,1754585455780,-585.2,0.00023835,2]
[377865721,1754585455789,-481.53193937,0.00023835,2]
[377865722,1754585455799,-807.02,0.00023835,2]
[377865723,1754585455808,-608.297843,0.00023835,7]
[377865724,1754585455818,-460.0,0.00023835,2]
[377865725,1754585455828,-1929.28,0.00023835,2]
[377865726,1754585455837,-608.297843,0.00023835,7]
[377865727,1754585455847,-460.0,0.00023835,2]
[377865728,1754585455857,-460.0,0.00023835,2]
[377865729,1754585455868,-460.0,0.00023835,2]
[377865730,1754585455879,-1106.41,0.00023835,2]
[377865731,1754585455889,-460.0,0.00023835,2]
[377865732,1754585455898,-674.64,0.00023835,2]
[377865733,1754585455908,-976.62,0.00023835,2]
[377865734,1754585455917,-1790.64,0.00023835,2]
[377865735,1754585455926,-461.3695942,0.00023835,7]
[377865736,1754585455935,-1216.9,0.00023835,2]
[377865737,1754585455944,-1021.61,0.00023835,2]
[377865738,1754585455954,-155.340455,0.00023835,7]
[377865739,1754585455962,-812.24,0.00023835,2]
[377865740,1754585455971,-1041.91,0.00023835,2]
[377865741,1754585455981,-589.48879942,0.00023835,2]
[377865742,1754585455990,-1655.29,0.00023835,2]
[377865743,1754585455999,-719.38,0.00023835,2]
[377865744,1754585456009,-610.97,0.00023835,2]
[377865745,1754585456018,-1794.57,0.00023835,2]
[377865746,1754585456027,-522.7258,0.00023835,7]
[377865747,1754585456035,-522.7258,0.00023835,7]
[377865748,1754585456044,-840.44,0.00023835,2]
[377865749,1754585456054,-151.0,0.00023835,7]
[377865750,1754585456063,-4384.59,0.00023835,2]
[377865751,1754585456073,-677.45,0.00023835,2]
[377865752,1754585456082,-2656.57,0.00023835,2]
[377865753,1754585456091,-710.03,0.00023835,2]
[377865754,1754585456100,-460.0,0.00023835,2]
[377865755,1754585456109,-460.0,0.00023835,2]
[377865756,1754585456118,-2749.67,0.00023835,2]
[377865757,1754585456130,-460.0,0.00023835,2]
[377865758,1754585456139,-460.0,0.00023835,2]
[377865759,1754585456148,-534.6,0.00023835,2]
[377865760,1754585456159,-2887.33,0.00023835,2]
[377865761,1754585456169,-1793.93,0.00023835,2]
[377865762,1754585456178,-3815.083943,0.00023835,7]
[377865763,1754585456188,-624.01,0.00023835,2]
[377865764,1754585456197,-468.01,0.00023835,2]
[377865765,1754585456207,-3815.083943,0.00023835,7]
[377865766,1754585456216,-601.76,0.00023835,2]
[377865767,1754585456225,-460.0,0.00023835,2]
[377865768,1754585456235,-722.07,0.00023835,2]
[377865769,1754585456245,-777.7,0.00023835,2]
[377865770,1754585456255,-546.01,0.00023835,2]
[377865771,1754585456265,-1465.66,0.00023835,2]
[377865772,1754585456274,-12660.90439413,0.0002384,7]
[377865773,1754585456285,-151.0,0.00023865,2]
[377865774,1754585456295,-198.0,0.00023865,2]
[377865775,1754585456304,-3925.19020053,0.00023867,2]
[377865776,1754585456313,-150.0,0.0002392,2]
[377865777,1754585456322,-360.0,0.00023969,2]
[377865778,1754585456332,-200.0,0.00024,2]
[377865779,1754585456341,-1699.06142133,0.00024,2]
[377865780,1754585456350,-455.3730055,0.00024,2]
[377865781,1754585456359,-322.90547651,0.00024,2]
[377865782,1754585456368,-1023.93026867,0.00024,7]
[377865783,1754585456379,-312.16666667,0.00024,7]
[377865784,1754585456388,-160.0,0.00024,7]
[377865785,1754585456398,-527.57568145,0.00024,7]
[377865786,1754585456407,-160.0,0.00024,7]
[377865787,1754585456416,-842.63596909,0.00024,7]
[377865788,1754585456426,-216.52217562,0.00024,7]
[377865789,1754585456435,-160.0,0.00024,7]
[377865790,1754585456444,-160.0,0.00024,7]
[377865791,1754585456453,-231.83071243,0.00024,7]
[377865792,1754585456463,-160.0,0.00024,7]
[377865793,1754585456472,-151.0,0.00024009,7]
[377865794,1754585456482,-151.0,0.00024009,7]
[377865795,1754585456491,-1500.0,0.00024046,2]
[377865796,1754585456500,-1500.0,0.00024046,2]
[377865797,1754585456509,-151.0,0.00024109,7]
[377865798,1754585456518,-157.724338,0.00024109,7]
[377865799,1754585456527,-292.45064,0.00024109,7]
[377865800,1754585456536,-292.45064,0.00024109,7]
[377865801,1754585456546,-151.0,0.00024109,7]
[377865802,1754585456555,-174.057901,0.00024109,7]
[377865803,1754585456564,-151.0,0.00024109,7]
[377865804,1754585456574,-397.303748,0.00024109,7]
[377865805,1754585456584,-151.0,0.00024109,7]
[377865806,1754585456593,-151.0,0.00024109,7]
[377865807,1754585456602,-151.0,0.00024109,7]
[377865808,1754585456612,-151.0,0.00024109,7]
[377865809,1754585456621,-151.0,0.00024109,7]
[377865810,1754585456631,-1492.974833,0.00024109,7]
[377865811,1754585456642,-151.0,0.00024109,7]
[377865812,1754585456652,-151.0,0.00024109,7]
[377865813,1754585456661,-151.0,0.00024109,7]
[377865814,1754585456670,-151.0,0.00024109,7]
[377865815,1754585456679,-274.148241,0.00024109,7]
[377865816,1754585456689,-151.0,0.00024109,7]
[377865817,1754585456698,-151.0,0.00024109,7]
[377865818,1754585456708,-151.797321,0.00024109,7]
[377865819,1754585456717,-460.0,0.00024109,2]
[377865820,1754585456727,-151.0,0.00024109,7]
[377865821,1754585456736,-151.0,0.00024109,7]
[377865822,1754585456745,-192.573371,0.00024109,7]
[377865823,1754585456754,-192.573371,0.00024109,7]
[377865824,1754585456764,-172.289034,0.00024109,7]
[377865825,1754585456776,-151.0,0.00024109,7]
[377865826,1754585456786,-593.43,0.00024109,2]
[377865827,1754585456795,-961.59,0.00024109,2]
[377865828,1754585456805,-179.101541,0.00024109,7]
[377865829,1754585456814,-460.0,0.00024109,2]
[377865830,1754585456823,-164.624851,0.00024109,7]
[377865831,1754585456833,-164.624851,0.00024109,7]
[377865832,1754585456843,-460.0,0.00024109,2]
[377865833,1754585456854,-1025.68,0.00024109,2]
[377865834,1754585456863,-711.58,0.00024109,2]
[377865835,1754585456872,-151.0,0.00024109,7]
[377865836,1754585456883,-151.0,0.00024109,7]
[377865837,1754585456892,-151.0,0.00024109,7]
[377865838,1754585456902,-151.0,0.00024109,7]
[377865839,1754585456911,-569.03,0.00024109,2]
[377865840,1754585456921,-271.750061,0.00024109,7]
[377865841,1754585456930,-271.750061,0.00024109,7]
[377865842,1754585456939,-677.77,0.00024109,2]
[377865843,1754585456948,-569.98,0.00024109,2]
[377865844,1754585456957,-466.12,0.00024109,2]
[377865845,1754585456966,-460.0,0.00024109,2]
[377865846,1754585456976,-286.73,0.00024109,2]
[377865847,1754585456985,-460.0,0.00024109,2]
[377865848,1754585456994,-822.97,0.00024109,2]
[377865849,1754585457004,-628.38,0.00024109,2]
[377865850,1754585457013,-1150.72,0.00024109,2]
[377865851,1754585457022,-462.74,0.00024109,2]
[377865852,1754585457031,-857.1,0.00024109,2]
[377865853,1754585457040,-888.93,0.00024109,2]
[377865854,1754585457049,-4583.72,0.00024109,2]
[377865855,1754585457058,-585.2,0.00024109,2]
[377865856,1754585457068,-807.02,0.00024109,2]
[377865857,1754585457077,-460.0,0.00024109,2]
[377865858,1754585457086,-1929.28,0.00024109,2]
[377865859,1754585457095,-223.07863894,0.00024109,2]
[377865860,1754585457105,-460.0,0.00024109,2]
[377865861,1754585457114,-460.0,0.00024109,2]
[377865862,1754585457123,-1106.41,0.00024109,2]
[377865863,1754585457132,-151.0,0.00024109,7]
[377865864,1754585457141,-331.73126947,0.00024109,2]
[377865865,1754585457150,-674.64,0.00024109,2]
[377865866,1754585457160,-976.62,0.00024109,2]
[377865867,1754585457169,-1790.64,0.00024109,2]
[377865868,1754585457178,-1216.9,0.00024109,2]
[377865869,1754585457187,-1021.61,0.00024109,2]
[377865870,1754585457197,-812.24,0.00024109,2]
[377865871,1754585457206,-1041.91,0.00024109,2]